{"text_format":"3","workbook":"xlsx","n_sheets":1,"sheets":["Ark1"],"read":"whole","date_system":"1900"}

{"sheet":"Ark1","index":0,"n_rows":23,"n_cols":16,"rows_kept":23,"merged":[[1,14,1,15]]}
["Austevoll"]
["Funksjonskategori","Systemnavn","Enhet/arkivskaper","Startår","Sluttår","Deponert","Aktivt i kommunen?","Avsluttet i kommunen?  Både deponerte og de som ligger på server i kommunen.","Ukjent status?","Tapt?","Merknader/Informasjon om systemet",{"$nulls":3},"Summering etter funksjon"]
["01 - Sosialtjeneste","IFS","Sosialtjenesten",null,1998,null,null,"Ja",{"$nulls":3},"Deponerte system:",{"$f":"COUNTIF(F:F,\"Ja\")","v":1},null,"1- Sosialtjeneste",{"$f":"COUNTIF(A:A,\"01 - sosialtjeneste\")","v":1}]
["02 - Bygg - oppmåling - eiendom","VG - Vesla Geonor","Teknisk",{"$nulls":5},"Ja",null,null,"Aktive system:",{"$f":"COUNTIF(G:G,\"Ja\")","v":2},null,"2 - Bygg - oppmåling - eiendom",{"$f":"COUNTIF(A:A,\"02 - Bygg - oppmåling - eiendom\")","v":2}]
["02 - Bygg - oppmåling - eiendom","Famec Web","Teknisk",2014,null,null,"Ja",{"$nulls":4},"Avsluttede system:",{"$f":"COUNTIF(H:H,\"Ja\")","v":6},null,"3 -Teknisk drift og anlegg",{"$f":"COUNTIF(A:A,\"03 -Teknisk drift og anlegg\")","v":0}]
["04 - Økonomi","Visma Enterprise","Økonomi",{"$nulls":5},"Ja",null,null,"Ukjent status:",{"$f":"COUNTIF(I:I,\"Ja\")","v":13},null,"4 - Økonomi",{"$f":"COUNTIF(A:A,\"04 - Økonomi\")","v":1}]
["06 -Skole","GSI","Skole",{"$nulls":5},"Ja",null,null,"Tapt:",{"$f":"COUNTIF(J:J,\"Ja\")","v":0},null,"5 - Forliksråd, overformynderi",{"$f":"COUNTIF(A:A,\"05 - Forliksråd, overformynderi\")","v":0}]
["06 -Skole","WIS Skole","Skole",2000,{"$nulls":4},"Ja",{"$nulls":5},"6 -Skole",{"$f":"COUNTIF(A:A,\"06 -Skole\")","v":3}]
["06 -Skole","PPI","PP-tjenesten",{"$nulls":5},"Ja",null,null,"Antall arkiv som er avsluttet, men ikke deponert:",{"$f":"M5-M3","v":5},null,"7 - Helsetjeneste",{"$f":"COUNTIF(A:A,\"07 - Helsetjeneste\")","v":4}]
["07 - Helsetjeneste","Proffdoc","Kommunehelsetjenesten",1995,{"$nulls":4},"Ja",{"$nulls":5},"8 - Arkivtjeneste - sak arkiv",{"$f":"COUNTIF(A:A,\"08 - Arkivtjeneste - sak arkiv\")","v":5}]
["07 - Helsetjeneste","SYSVAK","Kommunehelsetjenesten",1995,{"$nulls":4},"Ja",null,null,"Total (Aktive, avsluttede, ukjent):",{"$f":"SUM(M4,M5,M6)","v":21},null,"9 - Intern admin - under dette personal",{"$f":"COUNTIF(A:A,\"09 - Intern admin - under dette personal\")","v":0}]
["07 - Helsetjeneste","Infodoc Plenario","Kommunehelsetjenesten",2001,{"$nulls":4},"Ja",{"$nulls":5},"10 - Barnevern",{"$f":"COUNTIF(A:A,\"10 - Barnevern\")","v":2}]
["07 - Helsetjeneste","Profil","Kommunehelsetjenesten",{"$nulls":5},"Ja",{"$nulls":5},"12 - Kirke",{"$f":"COUNTIF(A:A,\"12 - Kirke\")","v":0}]
["08 - Arkivtjeneste - sak arkiv","DSS for AS-400","Sak/arkiv",1994,{"$nulls":3},"Ja",{"$nulls":6},"13 - Barnehage",{"$f":"COUNTIF(A:A,\"13 - Barnehage\")","v":0}]
["08 - Arkivtjeneste - sak arkiv","IBM/S36","Sak/arkiv",null,1994,null,null,"Ja",{"$nulls":6},"14 - Pleie og omsorg",{"$f":"COUNTIF(A:A,\"14 - Pleie og omsorg\")","v":0}]
["08 - Arkivtjeneste - sak arkiv","Kontor 2000","Sak/arkiv",1999,2005,"Ja",null,"Ja",{"$nulls":6},"15 - Sentrale system - stat",{"$f":"COUNTIF(A:A,\"15 - Sentrale system - stat\")","v":0}]
["08 - Arkivtjeneste - sak arkiv","Websak","Sak/arkiv",2009,null,null,"Ja",{"$nulls":7},"16 - Flyktningtjeneste",{"$f":"COUNTIF(A:A,\"16 - Flyktningtjeneste\")","v":0}]
["08 - Arkivtjeneste - sak arkiv","IBM/S36","Sak/arkiv",null,1994,null,null,"Ja",{"$nulls":6},"18 - Naturforvaltning",{"$f":"COUNTIF(A:A,\"18 - Naturforvaltning\")","v":0}]
["10 - Barnevern","IFS","Barnevernet",null,1998,null,null,"Ja",{"$nulls":6},"19 - Valg og valgadministrasjon",{"$f":"COUNTIF(A:A,\"19 - Valg og valgadministrasjon\")","v":0}]
["10 - Barnevern","Familia","Barnevernet",{"$nulls":5},"Ja",{"$nulls":5},"20 - Kultur og idrett",{"$f":"COUNTIF(A:A,\"20 - Kultur og idrett\")","v":3}]
["20 - Kultur og idrett","Mikromarc","Bibliotek",1994,{"$nulls":4},"Ja"]
["20 - Kultur og idrett","Tidemann","Bibliotek",2000,{"$nulls":4},"Ja"]
["20 - Kultur og idrett","Visma Kulturskole","Kulturskolen",{"$nulls":5},"Ja"]